bitfinex/quotes_BTCUSD_20250825
["timestamp","ask_amount","ask_price","bid_price","bid_amount"]
[1756093756226,0.84016158,113530.0,113520.0,0.00824778]
[1756093757205,0.62707545,113530.0,113520.0,0.00824778]
[1756093757841,0.80324034,113530.0,113520.0,0.00824778]
[1756093758196,0.80827034,113530.0,113520.0,0.00502778]
[1756093758409,0.80526034,113530.0,113520.0,0.00502778]
[1756093758622,0.80526034,113530.0,113520.0,0.00824778]
[1756093760115,0.80324034,113530.0,113520.0,0.00824778]
[1756093760299,0.80526034,113530.0,113520.0,0.00824778]
[1756093762364,0.80526034,113530.0,113520.0,0.00502778]
[1756093762537,0.88285059,113530.0,113520.0,0.00502778]
[1756093763226,0.80526034,113530.0,113520.0,0.00502778]
[1756093763778,0.80526034,113530.0,113520.0,0.00824778]
[1756093764754,0.80526034,113530.0,113520.0,0.00502778]
[1756093765076,0.80526034,113530.0,113520.0,0.00824778]
[1756093765711,0.80324034,113530.0,113520.0,0.00824778]
[1756093765981,0.80526034,113530.0,113520.0,0.00824778]
[1756093766400,0.80827034,113530.0,113520.0,0.00502778]
[1756093767425,0.80526034,113530.0,113520.0,0.00502778]
[1756093768322,0.76654389,113530.0,113520.0,0.00502778]
[1756093768926,0.76650389,113530.0,113520.0,0.00502778]
[1756093769134,0.76650389,113530.0,113520.0,0.00824778]
[1756093769363,0.76650389,113530.0,113520.0,0.00502778]
[1756093769780,0.76650389,113530.0,113520.0,0.00824778]
[1756093770005,0.76650389,113530.0,113520.0,0.00502778]
[1756093770855,0.76951389,113530.0,113520.0,0.00304778]
[1756093771066,0.80887317,113530.0,113520.0,0.00304778]
[1756093772108,0.80586317,113530.0,113520.0,0.00503778]
[1756093772311,0.80887317,113530.0,113520.0,0.00304778]
[1756093773326,0.81506268,113530.0,113520.0,0.00304778]
[1756093779601,0.81506446,113530.0,113520.0,0.00304778]
[1756093781518,5.62312711,113530.0,113520.0,0.00304778]
[1756093782915,5.62312705,113530.0,113520.0,0.00304778]
[1756093783143,0.1761804,113520.0,113510.0,0.0004]
[1756093783363,0.41744515,113520.0,113510.0,0.00044781]
[1756093783765,0.44393715,113520.0,113510.0,0.00044781]
[1756093784220,5.51132027,113520.0,113510.0,0.00044781]
[1756093784417,5.61720159,113520.0,113510.0,0.00144781]
[1756093785044,5.62545158,113520.0,113510.0,0.00144781]
[1756093785256,5.60643991,113520.0,113510.0,0.00044781]
[1756093785572,5.62388893,113520.0,113510.0,0.00044781]
[1756093785815,5.62388893,113520.0,113510.0,0.00144781]
[1756093786100,5.62388893,113520.0,113510.0,0.00044781]
[1756093786614,5.47464893,113520.0,113510.0,0.00044781]
[1756093786837,5.45412991,113520.0,113510.0,0.00538781]
[1756093787273,5.60125991,113520.0,113510.0,0.00538781]
[1756093787480,5.60332991,113520.0,113510.0,0.00538781]
[1756093787692,5.60332991,113520.0,113510.0,0.00244781]
[1756093788110,5.60125991,113520.0,113510.0,0.00538781]
[1756093788343,5.59507992,113520.0,113510.0,0.00538781]
[1756093788551,5.60886967,113520.0,113510.0,0.00538781]
[1756093789265,5.60886967,113520.0,113510.0,0.00244781]
[1756093789528,5.60267955,113520.0,113510.0,0.00244781]
[1756093789711,5.60886176,113520.0,113510.0,0.00244781]
[1756093790610,5.61193131,113520.0,113510.0,0.00244781]
[1756093791021,5.59814156,113520.0,113510.0,0.00244781]
[1756093794195,5.59507156,113520.0,113510.0,0.00244781]
[1756093794402,5.6119317,113520.0,113510.0,0.00244781]
[1756093795194,5.6119317,113520.0,113510.0,0.00044781]
[1756093795416,5.62017149,113520.0,113510.0,0.00044781]
[1756093796010,5.62016948,113520.0,113510.0,0.00044781]
[1756093796213,5.61398973,113520.0,113510.0,0.00044781]
[1756093796394,5.6119294,113520.0,113510.0,0.00044781]
[1756093799314,5.51991975,113520.0,113510.0,0.00538781]
[1756093799662,5.51991846,113520.0,113510.0,0.00538781]
[1756093799867,5.52198846,113520.0,113510.0,0.00538781]
[1756093800066,5.51581029,113520.0,113510.0,0.00538781]
[1756093800266,5.52198846,113520.0,113510.0,0.00538781]
[1756093800570,0.70566254,113520.0,113510.0,0.00538781]
[1756093800766,0.6918724,113520.0,113510.0,0.00538781]
[1756093801434,0.3518724,113520.0,113510.0,0.00538781]
[1756093801845,0.6918724,113520.0,113510.0,0.00538781]
[1756093804113,0.6653804,113520.0,113510.0,0.00538781]
[1756093804331,0.68123928,113520.0,113510.0,0.00538781]
[1756093807154,0.68123928,113520.0,113510.0,0.00244781]
[1756093807360,0.68430928,113520.0,113510.0,0.00244781]
[1756093807734,5.49238703,113520.0,113510.0,0.00044781]
[1756093808156,5.51888003,113520.0,113510.0,0.00044781]
[1756093809188,5.51581003,113520.0,113510.0,0.00244781]
[1756093809482,5.51876003,113520.0,113510.0,0.00244781]
[1756093809693,5.51876003,113520.0,113510.0,0.00044781]
[1756093809893,5.36661003,113520.0,113510.0,0.00247781]
[1756093810002,5.51577003,113520.0,113510.0,0.00546781]
[1756093810203,5.19042963,113520.0,113510.0,0.00546781]
[1756093810408,0.70562228,113520.0,113510.0,0.00546781]
[1756093811075,0.70775228,113520.0,113510.0,0.00247781]
[1756093811886,0.71070228,113520.0,113510.0,0.00247781]
[1756093812085,0.6969134,113520.0,113510.0,0.00044781]
[1756093814624,0.6918334,113520.0,113510.0,0.00546781]
[1756093815383,0.70562284,113520.0,113510.0,0.00546781]
[1756093816053,0.55646284,113520.0,113510.0,0.00546781]
[1756093816402,0.70558284,113520.0,113510.0,0.00546781]
[1756093816595,0.70558284,113520.0,113510.0,0.00646781]
[1756093817008,0.70771284,113520.0,113510.0,0.00646781]
[1756093817310,0.70771284,113520.0,113510.0,0.00263781]
[1756093817807,0.70771284,113520.0,113510.0,0.00363781]
[1756093818013,0.71066284,113520.0,113510.0,0.002]
[1756093818146,0.71066284,113520.0,113510.0,0.00403]
[1756093819177,0.71066284,113520.0,113510.0,0.002]
[1756093828131,0.56154284,113520.0,113510.0,0.002]
[1756093828281,0.71066284,113520.0,113510.0,0.002]
[1756093832317,0.71062284,113520.0,113510.0,0.002]
[1756093834787,0.70554284,113520.0,113510.0,0.00702]
[1756093834998,0.70767284,113520.0,113510.0,0.00702]
[1756093835205,0.70767284,113520.0,113510.0,0.00403]
[1756093836044,0.71062284,113520.0,113510.0,0.00403]
[1756093837600,0.71062284,113520.0,113510.0,0.002]
[1756093841849,0.56154284,113520.0,113510.0,0.002]
[1756093842064,0.71062284,113520.0,113510.0,0.00412]
[1756093844498,0.71062284,113520.0,113510.0,0.002]
[1756093855570,0.71058284,113520.0,113510.0,0.00412]
[1756093855764,0.70763284,113520.0,113510.0,0.00412]
[1756093855984,0.70546284,113520.0,113510.0,0.00709]
[1756093856392,0.55646284,113520.0,113510.0,0.00709]
[1756093856602,0.70546284,113520.0,113510.0,0.00709]
[1756093856804,0.70546284,113520.0,113510.0,0.25709]
[1756093858318,0.55646284,113520.0,113510.0,0.25709]
[1756093858515,0.70546284,113520.0,113510.0,0.25709]
[1756093859645,0.70756284,113520.0,113510.0,0.25709]
[1756093860596,0.70546284,113520.0,113510.0,0.25709]
[1756093861203,0.70756284,113520.0,113510.0,0.25412]
[1756093861370,0.71067284,113520.0,113510.0,0.25412]
[1756093862472,0.70756284,113520.0,113510.0,0.25709]
[1756093862675,0.70546284,113520.0,113510.0,0.25709]
[1756093862897,0.70756284,113520.0,113510.0,0.25709]
[1756093864942,0.70756284,113520.0,113510.0,0.25412]
[1756093865354,0.71067284,113520.0,113510.0,0.25412]
[1756093866335,0.70756284,113520.0,113510.0,0.25412]
[1756093867908,0.71067284,113520.0,113510.0,0.25412]
[1756093868582,0.70756284,113520.0,113510.0,0.25412]
[1756093869092,0.71067284,113520.0,113510.0,0.25412]
[1756093869643,0.71067284,113520.0,113510.0,0.252]
[1756093870960,0.70756284,113520.0,113510.0,0.25415]
[1756093871405,0.70756284,113520.0,113510.0,0.25731]
[1756093873106,0.70761284,113520.0,113510.0,0.25731]
[1756093874368,0.55646284,113520.0,113510.0,0.25731]
[1756093874574,0.70542284,113520.0,113510.0,0.25731]
[1756093874902,0.70757284,113520.0,113510.0,0.25731]
[1756093875255,0.70757284,113520.0,113510.0,0.25415]
[1756093877115,0.71061284,113520.0,113510.0,0.25415]
[1756093879524,0.71061284,113520.0,113510.0,0.252]
[1756093881404,0.71061284,113520.0,113510.0,0.25415]
[1756093882464,0.70757284,113520.0,113510.0,0.25415]
[1756093882873,0.71061284,113520.0,113510.0,0.25415]
[1756093883290,0.71061284,113520.0,113510.0,0.25163]
[1756093884650,0.70757284,113520.0,113510.0,0.25163]
[1756093885063,0.55861284,113520.0,113510.0,0.25163]
[1756093885258,0.70753284,113520.0,113510.0,0.25163]
[1756093885602,0.70753284,113520.0,113510.0,0.25479]
[1756093885803,0.70538284,113520.0,113510.0,0.25479]
[1756093886010,0.6915934,113520.0,113510.0,0.25479]
[1756093887089,0.6937434,113520.0,113510.0,0.25479]
[1756093887283,0.6967834,113520.0,113510.0,0.25163]
[1756093888482,0.6937434,113520.0,113510.0,0.25163]
[1756093888692,0.6915934,113520.0,113510.0,0.25479]
[1756093889543,0.7053822,113520.0,113510.0,0.25479]
[1756093889943,0.7075322,113520.0,113510.0,0.25479]
[1756093890836,0.6937434,113520.0,113510.0,0.25479]
[1756093891043,0.6937434,113520.0,113510.0,0.25163]
[1756093891251,0.6967834,113520.0,113510.0,0.25163]
[1756093891774,0.6967834,113520.0,113510.0,0.24948]
[1756093891978,0.6967834,113520.0,113510.0,0.25163]
[1756093892139,0.6967834,113520.0,113510.0,0.24948]
[1756093892936,0.17619592,113510.0,113500.0,0.3994]
[1756093893208,0.32511592,113510.0,113500.0,0.49219924]
[1756093893414,0.33030592,113510.0,113500.0,0.34112924]
[1756093893584,0.67030592,113510.0,113500.0,0.34112924]
[1756093893948,0.69679792,113510.0,113500.0,0.09112924]
[1756093894137,0.69679792,113510.0,113500.0,0.09212924]
[1756093894928,0.71058785,113510.0,113500.0,0.09212924]
[1756093895334,0.72184916,113510.0,113500.0,0.09212924]
[1756093895789,0.72138228,113510.0,113500.0,0.09212924]
[1756093896627,0.69494093,113510.0,113500.0,0.09212924]
[1756093897253,0.78182568,113510.0,113500.0,0.09212924]
[1756093897467,0.78182568,113510.0,113500.0,0.00160656]
[1756093898405,0.78182568,113510.0,113500.0,0.00060656]
[1756093899053,0.78282568,113510.0,113500.0,0.00060656]
[1756093899518,0.78482568,113510.0,113500.0,0.00060656]
[1756093899704,0.78282568,113510.0,113500.0,0.00060656]
[1756093900104,0.78382568,113510.0,113500.0,0.00060656]
[1756093900266,0.78282568,113510.0,113500.0,0.00060656]
[1756093900873,0.78082568,113510.0,113500.0,0.00060656]
[1756093905849,0.80969391,113510.0,113500.0,0.00060656]
[1756093906227,0.79590398,113510.0,113500.0,0.00060656]
[1756093906433,5.51709698,113510.0,113500.0,0.00060656]
[1756093906570,5.60396663,113510.0,113500.0,0.00060656]
[1756093907941,5.45508663,113510.0,113500.0,0.00060656]
[1756093908153,5.51709698,113510.0,113500.0,0.00259656]
[1756093908552,5.51709698,113510.0,113500.0,0.00060656]
[1756093909484,5.3820077,113510.0,113500.0,0.00060656]
[1756093909628,5.5308877,113510.0,113500.0,0.00060656]
[1756093909838,5.60396663,113510.0,113500.0,0.00060656]
[1756093911017,5.60396663,113510.0,113500.0,0.00259656]
[1756093911280,5.60396663,113510.0,113500.0,0.00060656]
[1756093911476,5.45508663,113510.0,113500.0,0.00060656]
[1756093911688,5.60396663,113510.0,113500.0,0.00060656]
[1756093912288,5.45508663,113510.0,113500.0,0.00259656]
[1756093912513,5.60092663,113510.0,113500.0,0.00563656]
[1756093912918,5.60092663,113510.0,113500.0,0.00259656]
[1756093913120,5.61471704,113510.0,113500.0,0.00259656]
[1756093913329,5.61793704,113510.0,113500.0,0.00259656]
[1756093913956,5.61793704,113510.0,113500.0,0.00060656]
[1756093917618,5.61471704,113510.0,113500.0,0.00259656]
[1756093918014,5.61793704,113510.0,113500.0,0.00259656]
[1756093918573,5.61793704,113510.0,113500.0,0.00060656]
[1756093918834,5.52784739,113510.0,113500.0,0.00259656]
[1756093919224,5.53106739,113510.0,113500.0,0.00259656]
[1756093919902,0.56873964,113510.0,113500.0,0.00563656]
[1756093920094,0.70382923,113510.0,113500.0,0.00563656]
[1756093921009,0.70382923,113510.0,113500.0,0.25563656]
[1756093922767,0.70586923,113510.0,113500.0,0.25563656]
[1756093923149,0.70382923,113510.0,113500.0,0.25563656]
[1756093923395,0.71761924,113510.0,113500.0,0.25563656]
[1756093923518,0.71757924,113510.0,113500.0,0.25563656]
[1756093925679,0.71961924,113510.0,113500.0,0.25563656]
[1756093926949,0.71961924,113510.0,113500.0,0.00563656]
[1756093927807,0.71757924,113510.0,113500.0,0.00563656]
[1756093928046,0.71961924,113510.0,113500.0,0.00259656]
[1756093928251,0.71961924,113510.0,113500.0,0.00563656]
[1756093929062,0.71961924,113510.0,113500.0,0.25259656]
[1756093929942,0.71961924,113510.0,113500.0,0.00259656]
[1756093929943,0.72277924,113510.0,113500.0,0.00259656]
[1756093930205,0.72277924,113510.0,113500.0,0.00060656]
[1756093930480,0.77769984,113510.0,113500.0,0.00060656]
[1756093930723,0.72277924,113510.0,113500.0,0.00060656]
[1756093930958,0.80966399,113510.0,113500.0,0.00060656]
[1756093937837,0.46966399,113510.0,113500.0,0.00060656]
[1756093939663,0.80966399,113510.0,113500.0,0.00060656]
[1756093941719,0.66082399,113510.0,113500.0,0.00060656]
[1756093941936,0.80962399,113510.0,113500.0,0.00060656]
[1756093943366,0.66082399,113510.0,113500.0,0.00060656]
[1756093943591,0.80646399,113510.0,113500.0,0.00273656]
[1756093943813,0.80646399,113510.0,113500.0,0.00580656]
[1756093944029,0.80646399,113510.0,113500.0,0.00273656]
[1756093944407,0.80962399,113510.0,113500.0,0.00273656]
[1756093944980,0.80929104,113510.0,113500.0,0.00060656]
[1756093945199,0.8070065,113510.0,113500.0,0.00060656]
[1756093945483,0.64441649,113510.0,113500.0,0.00060656]
[1756093945705,0.79321649,113510.0,113500.0,0.00060656]
[1756093947073,0.64441649,113510.0,113500.0,0.00060656]
[1756093947295,0.79321649,113510.0,113500.0,0.00060656]
[1756093948592,0.80700709,113510.0,113500.0,0.00060656]
[1756093949248,0.65820709,113510.0,113500.0,0.00060656]
[1756093949454,0.80700709,113510.0,113500.0,0.00273656]
[1756093950333,0.65820709,113510.0,113500.0,0.00273656]
[1756093950578,0.71492234,113510.0,113500.0,0.00580656]
[1756093950802,0.56612234,113510.0,113500.0,0.00580656]
[1756093951015,0.71492234,113510.0,113500.0,0.00580656]
[1756093951733,0.70113174,113510.0,113500.0,0.00580656]
[1756093953896,0.70109174,113510.0,113500.0,0.00580656]
[1756093954727,0.71488174,113510.0,113500.0,0.00580656]
[1756093955738,0.72012174,113510.0,113500.0,0.00060656]
[1756093957273,0.57136174,113510.0,113500.0,0.00060656]
[1756093957516,0.72012174,113510.0,113500.0,0.00060656]
[1756093958033,0.89387614,113510.0,113500.0,0.00060656]
[1756093960853,5.61506914,113510.0,113500.0,0.00060656]
[1756093961484,5.61506914,113510.0,113490.0,0.000443]
[1756093961485,0.51621145,113500.0,113490.0,0.000443]
[1756093961694,0.51622698,113490.0,113480.0,0.0004]
[1756093961924,0.66705698,113490.0,113480.0,0.09092268]
[1756093962127,0.69672498,113490.0,113480.0,0.09140142]
[1756093963495,0.69672498,113490.0,113480.0,0.09240142]
[1756093964432,0.78360973,113490.0,113480.0,0.09240142]
[1756093964777,0.87047938,113490.0,113480.0,0.09240142]
[1756093964985,0.88427193,113490.0,113480.0,0.09240142]
[1756093965162,0.79740228,113490.0,113480.0,0.09240142]
[1756093973585,0.79740228,113490.0,113470.0,0.0004]
[1756093973586,0.5162425,113480.0,113470.0,0.0004]
[1756093973794,5.49576927,113480.0,113470.0,0.00044782]
[1756093974797,5.52227327,113480.0,113470.0,0.00044782]
[1756093974998,5.61014292,113480.0,113470.0,0.00044782]
[1756093976094,5.640129,113480.0,113470.0,0.00044782]
[1756093976937,5.65392417,113480.0,113470.0,0.00044782]
[1756093978303,5.65392417,113480.0,113460.0,0.0004]
[1756093978304,0.96465804,113470.0,113460.0,0.0004]
[1756093978440,0.51627357,113460.0,113450.0,0.2504]
[1756093978643,0.7851444,113460.0,113450.0,0.2504]
[1756093978853,0.7851444,113460.0,113450.0,0.0004]
[1756093979059,0.79894112,113460.0,113450.0,0.0004]
[1756093979505,0.82544812,113460.0,113450.0,0.0004]
[1756093979704,0.91231777,113460.0,113450.0,0.0014]
[1756093980524,5.68751405,113460.0,113450.0,0.0004]
[1756093980749,5.53875405,113460.0,113450.0,0.0004]
[1756093980957,5.5974744,113460.0,113450.0,0.00251]
[1756093981390,0.84622532,113460.0,113450.0,0.00572]
[1756093981617,0.24221178,113460.0,113450.0,0.00572]
[1756093981840,0.39097178,113460.0,113450.0,0.00572]
[1756093982077,0.73097178,113460.0,113450.0,0.25572]
[1756093982337,0.73197178,113460.0,113450.0,0.25572]
[1756093982952,0.73097178,113460.0,113450.0,0.00572]
[1756093984267,0.58221178,113460.0,113450.0,0.00572]
[1756093984470,0.73097178,113460.0,113450.0,0.00572]
[1756093984975,0.73621178,113460.0,113450.0,0.0004]
[1756093986305,0.73621178,113460.0,113450.0,0.00251]
[1756093986510,0.73304178,113460.0,113450.0,0.00251]
[1756093986912,0.73304178,113460.0,113450.0,0.00572]
[1756093987529,0.73097178,113460.0,113450.0,0.00572]
[1756093989146,0.73304178,113460.0,113450.0,0.00572]
[1756093990532,0.73299377,113460.0,113450.0,0.00572]
[1756093991656,0.73299377,113460.0,113450.0,0.00251]
[1756093991657,0.73599377,113460.0,113450.0,0.00251]
[1756093992525,0.73599377,113460.0,113450.0,0.0004]
[1756093993775,0.58216377,113460.0,113450.0,0.00556]
[1756093993982,0.73092377,113460.0,113450.0,0.00556]
[1756093995914,0.73307377,113460.0,113450.0,0.00556]
[1756093997196,0.73092377,113460.0,113450.0,0.00556]
[1756093999128,0.73307377,113460.0,113450.0,0.00556]
[1756094002063,0.58431377,113460.0,113450.0,0.00556]
[1756094002313,0.73307377,113460.0,113450.0,0.00556]
[1756094002963,0.73307377,113460.0,113450.0,0.00251]
[1756094003865,0.73307377,113460.0,113450.0,0.00556]
[1756094005016,0.73307377,113460.0,113450.0,0.00251]
[1756094005703,0.73307377,113460.0,113450.0,0.00776361]
[1756094005704,0.73092377,113460.0,113450.0,0.00776361]
[1756094005924,0.73092377,113460.0,113450.0,0.00556]
[1756094006234,0.73307377,113460.0,113450.0,0.00251]
[1756094006672,0.73607377,113460.0,113450.0,0.00251]
[1756094006890,0.73607377,113460.0,113450.0,0.25251]
[1756094007099,0.73307377,113460.0,113450.0,0.25251]
[1756094008165,0.69364256,113460.0,113450.0,0.25251]
[1756094008373,0.69149256,113460.0,113450.0,0.25556]
[1756094008578,0.69364256,113460.0,113450.0,0.25556]
[1756094009001,0.69364256,113460.0,113450.0,0.25251]
[1756094010224,0.69664256,113460.0,113450.0,0.25251]
[1756094011153,0.69664256,113460.0,113450.0,0.2504]
[1756094011559,0.69664256,113460.0,113450.0,0.25251]
[1756094011796,0.69664256,113460.0,113450.0,0.2504]
[1756094012419,0.69664256,113460.0,113450.0,0.25251]
[1756094013262,0.69364256,113460.0,113450.0,0.25251]
[1756094013509,0.69364256,113460.0,113450.0,0.2504]
[1756094013737,0.69664256,113460.0,113450.0,0.2504]
[1756094015092,0.69664256,113460.0,113450.0,0.25251]
[1756094015992,0.69660256,113460.0,113450.0,0.25251]
[1756094017084,0.69360256,113460.0,113450.0,0.25251]
[1756094017319,0.69360256,113460.0,113450.0,0.25556]
[1756094017796,0.69145256,113460.0,113450.0,0.25556]
[1756094018030,0.69360256,113460.0,113450.0,0.25556]
[1756094018735,0.69360256,113460.0,113450.0,0.25251]
[1756094018967,0.69660256,113460.0,113450.0,0.25251]
[1756094020924,0.47499289,113460.0,113450.0,0.25251]
[1756094021157,0.65126646,113460.0,113450.0,0.25251]
[1756094025301,0.65126646,113460.0,113450.0,0.2504]
[1756094025947,0.65126646,113460.0,113450.0,0.25249]
[1756094026392,0.65122646,113460.0,113450.0,0.25249]
[1756094026633,0.65122646,113460.0,113450.0,0.2504]
[1756094027208,0.65122646,113460.0,113450.0,0.26806]
[1756094027427,0.65122646,113460.0,113450.0,0.2504]
[1756094027640,0.65122646,113460.0,113450.0,0.25249]
[1756094029715,0.65122646,113460.0,113450.0,0.2504]
[1756094030050,0.65122646,113460.0,113450.0,0.25249]
[1756094030478,0.64822646,113460.0,113450.0,0.25552]
[1756094030686,0.64607646,113460.0,113450.0,0.25552]
[1756094030895,0.64818646,113460.0,113450.0,0.25249]
[1756094031733,0.65120646,113460.0,113450.0,0.25249]
[1756094031952,0.65120646,113460.0,113450.0,0.2504]
[1756094032258,0.65120646,113460.0,113450.0,0.25249]
[1756094032785,0.64818646,113460.0,113450.0,0.25249]
[1756094033294,0.65120646,113460.0,113450.0,0.25249]
[1756094034430,0.64818646,113460.0,113450.0,0.25249]
[1756094035969,0.49950646,113460.0,113450.0,0.25249]
[1756094036151,0.64818646,113460.0,113450.0,0.25249]
[1756094036893,0.65120646,113460.0,113450.0,0.25249]
[1756094037093,0.65120646,113460.0,113450.0,0.2504]
[1756094038650,0.65120646,113460.0,113450.0,0.25249]
[1756094038997,0.65120646,113460.0,113450.0,0.2504]
[1756094040748,0.65120646,113460.0,113450.0,0.25249]
[1756094041622,0.49950646,113460.0,113450.0,0.25249]
[1756094041834,0.64818646,113460.0,113450.0,0.25552]
[1756094042061,0.64818646,113460.0,113450.0,0.25249]
[1756094042262,0.65120646,113460.0,113450.0,0.25249]
[1756094042662,0.49739646,113460.0,113450.0,0.25249]
[1756094042869,0.64607646,113460.0,113450.0,0.25552]
[1756094043068,0.49739646,113460.0,113450.0,0.25552]
[1756094043279,0.64607646,113460.0,113450.0,0.25552]
[1756094043482,0.64818646,113460.0,113450.0,0.25552]
[1756094043893,0.64818646,113460.0,113450.0,0.25249]
[1756094044130,0.32706357,113460.0,113450.0,0.25249]
[1756094044530,0.32706357,113460.0,113450.0,0.25552]
[1756094045849,0.32706357,113460.0,113450.0,0.25249]
[1756094046058,0.70633596,113460.0,113450.0,0.25552]
[1756094046264,0.70633596,113460.0,113450.0,0.25249]
[1756094046736,0.70633596,113460.0,113450.0,0.0480625]
[1756094047167,0.70935596,113460.0,113450.0,0.0480625]
[1756094047496,0.70935596,113460.0,113450.0,0.0459725]
[1756094047907,0.70935596,113460.0,113450.0,0.00209]
[1756094048359,0.51628911,113450.0,113440.0,0.00343]
[1756094048526,0.66492911,113450.0,113440.0,0.00552]
[1756094049155,0.67872553,113450.0,113440.0,0.00552]
[1756094049596,0.67872553,113450.0,113440.0,0.00652]
[1756094050543,0.67872553,113450.0,113440.0,0.00752]
[1756094051602,0.53008553,113450.0,113440.0,0.00752]
[1756094051783,0.68084553,113450.0,113440.0,0.00752]
[1756094052609,0.67872553,113450.0,113440.0,0.00752]
[1756094053037,0.68393553,113450.0,113440.0,0.0024]
[1756094055008,0.67013911,113450.0,113440.0,0.0024]
[1756094055857,0.66995111,113450.0,113440.0,0.0024]
[1756094056475,0.66995111,113450.0,113440.0,0.0014]
[1756094057002,0.67348511,113450.0,113440.0,0.0014]
[1756094057207,0.67348511,113450.0,113440.0,0.0004]
[1756094058134,0.68728295,113450.0,113440.0,0.0004]
[1756094058951,0.68728295,113450.0,113440.0,0.00051695]
[1756094061789,0.68065895,113450.0,113440.0,0.00574695]
[1756094062169,0.66686111,113450.0,113440.0,0.00258695]
[1756094062790,0.66995111,113450.0,113440.0,0.00258695]
[1756094064267,0.51610111,113450.0,113440.0,0.00574695]
[1756094064460,0.66474111,113450.0,113440.0,0.00574695]
[1756094065340,0.67853823,113450.0,113440.0,0.00574695]
[1756094065783,0.68065823,113450.0,113440.0,0.00258695]
[1756094066005,0.68065823,113450.0,113440.0,0.00574695]
[1756094066408,0.53201823,113450.0,113440.0,0.00574695]
[1756094066610,0.67853823,113450.0,113440.0,0.00574695]
[1756094066982,0.52989823,113450.0,113440.0,0.00574695]
[1756094067245,0.67853823,113450.0,113440.0,0.00574695]
[1756094069896,0.68065823,113450.0,113440.0,0.00051695]
[1756094070119,0.68374823,113450.0,113440.0,0.00051695]
[1756094072675,0.68374823,113450.0,113440.0,0.00258695]
[1756094073795,0.68065823,113450.0,113440.0,0.00258695]
[1756094074015,0.53201823,113450.0,113440.0,0.00258695]
[1756094074246,0.68065823,113450.0,113440.0,0.00258695]
[1756094074719,0.68374823,113450.0,113440.0,0.00051695]
[1756094075254,0.44352442,113450.0,113440.0,0.00051695]
[1756094075458,0.61981353,113450.0,113440.0,0.00051695]
[1756094075845,0.70669828,113450.0,113440.0,0.00051695]
[1756094076057,0.77977081,113450.0,113440.0,0.00051695]
[1756094076298,0.69290116,113450.0,113440.0,0.00051695]
[1756094076823,0.71941016,113450.0,113440.0,0.00051695]
[1756094079239,0.73320832,113450.0,113440.0,0.00051695]
[1756094080866,0.71941016,113450.0,113440.0,0.00051695]
[1756094081926,0.57077016,113450.0,113440.0,0.00051695]
[1756094082134,0.71941016,113450.0,113440.0,0.00051695]
[1756094084290,0.73320864,113450.0,113440.0,0.00051695]
[1756094089129,0.73320864,113450.0,113440.0,0.0004]
[1756094091584,0.82007829,113450.0,113440.0,0.0004]
[1756094093741,0.73320864,113450.0,113440.0,0.0004]
[1756094094642,0.80100864,113450.0,113440.0,0.0004]
[1756094101596,0.65236864,113450.0,113440.0,0.0004]
[1756094101823,0.80100864,113450.0,113440.0,0.0004]
[1756094118971,0.80089169,113450.0,113440.0,0.0004]
[1756094123015,0.90521036,113450.0,113440.0,0.0004]
[1756094123255,5.62640336,113450.0,113440.0,0.0004]
[1756094124356,5.62840336,113450.0,113440.0,0.0004]
[1756094124784,5.62640336,113450.0,113440.0,0.0004]
[1756094125065,6.07580336,113450.0,113440.0,0.0004]
[1756094125478,5.92716336,113450.0,113440.0,0.0004]
[1756094125696,6.07776336,113450.0,113440.0,0.0004]
[1756094131527,5.92916336,113450.0,113440.0,0.0004]
[1756094131736,6.07776336,113450.0,113440.0,0.0004]
[1756094133385,5.92916336,113450.0,113440.0,0.0004]
[1756094133595,6.07776336,113450.0,113440.0,0.0004]
[1756094143817,6.08289513,113450.0,113440.0,0.0004]
[1756094146837,6.09669432,113450.0,113440.0,0.0004]
[1756094151113,6.08289513,113450.0,113440.0,0.0004]
[1756094152117,6.08289513,113450.0,113440.0,1e-08]
[1756094152343,6.09111095,113450.0,113440.0,1e-08]
[1756094153264,6.08289513,113450.0,113440.0,1e-08]
[1756094153474,6.09111081,113450.0,113440.0,1e-08]
[1756094154491,6.10491003,113450.0,113440.0,1e-08]
[1756094158991,5.95631003,113450.0,113440.0,1e-08]
[1756094159189,6.10483003,113450.0,113440.0,1e-08]
[1756094159657,5.95631003,113450.0,113440.0,1e-08]
[1756094159879,6.10483003,113450.0,113440.0,1e-08]
[1756094160615,5.95631003,113450.0,113440.0,1e-08]
[1756094160825,6.10483003,113450.0,113440.0,1e-08]
[1756094161974,6.09661435,113450.0,113440.0,1e-08]
[1756094162175,6.10483117,113450.0,113440.0,1e-08]
[1756094162819,6.10483269,113450.0,113440.0,1e-08]
[1756094166555,5.65643269,113450.0,113440.0,1e-08]
[1756094166792,0.53375367,113440.0,113430.0,1e-08]
[1756094167016,5.94083142,113440.0,113430.0,0.00206001]
[1756094167161,1.30973807,113440.0,113430.0,1e-08]
[1756094167537,1.31327307,113440.0,113430.0,1e-08]
[1756094167738,1.22640342,113440.0,113430.0,1e-08]
[1756094168032,1.22640342,113440.0,113430.0,8.404e-05]
[1756094169897,1.22740342,113440.0,113430.0,8.404e-05]
[1756094170098,5.94859642,113440.0,113430.0,8.404e-05]
[1756094170521,5.95059642,113440.0,113430.0,8.404e-05]
[1756094170723,6.03746607,113440.0,113430.0,8.404e-05]
[1756094171179,6.03946607,113440.0,113430.0,8.404e-05]
[1756094171359,6.03846607,113440.0,113430.0,8.404e-05]
[1756094171764,6.03946607,113440.0,113430.0,8.404e-05]
[1756094173972,6.03946607,113440.0,113430.0,1e-08]
[1756094175248,0.51633574,113420.0,113410.0,0.00317]
[1756094175497,0.82172049,113420.0,113410.0,0.00520787]
[1756094175882,0.82692849,113420.0,113410.0,0.00520787]
[1756094176488,0.67626849,113420.0,113410.0,0.00520787]
[1756094176672,0.82478849,113420.0,113410.0,0.00520787]
[1756094177218,0.67626849,113420.0,113410.0,0.00520787]
[1756094177425,0.82478849,113420.0,113410.0,0.00520787]
[1756094178977,0.83858961,113420.0,113410.0,0.00520787]
[1756094179535,0.87853916,113420.0,113410.0,0.00520787]
[1756094180145,0.65288768,113420.0,113410.0,0.00520787]
[1756094180364,0.80140768,113420.0,113410.0,0.00520787]
[1756094182370,0.78760656,113420.0,113410.0,0.00520787]
[1756094182631,0.78974656,113420.0,113410.0,0.00520787]
[1756094182838,0.78760656,113420.0,113410.0,0.00520787]
[1756094185511,0.80140766,113420.0,113410.0,0.00520787]
[1756094189605,0.73079376,113420.0,113410.0,0.00520787]
[1756094191612,0.73612376,113420.0,113410.0,0.00203787]
[1756094192035,0.73293376,113420.0,113410.0,0.00203787]
[1756094192442,0.73293376,113420.0,113410.0,0.00520787]
[1756094194142,0.58441376,113420.0,113410.0,0.00520787]